[Event "Early-Titled-Tuesday-Blitz-January-16-2024"]
[Site "Chess.com"]
[Date "2024.01.16"]
[Round "3"]
[White "Matrix3x3a"]
[Black "VeraVujovic"]
[Result "1-0"]
[WhiteElo "2437"]
[BlackElo "2211"]
[TimeControl "180+1"]
[EndTime "8:27:15 PST"]
[Termination "Matrix3x3a won by resignation"]

1. d4 {[%clk 0:03:00.9]} 1... d5 {[%clk 0:02:59.6]} 2. c4 {[%clk 0:03:00.7]}
2... dxc4 {[%clk 0:02:58.8]} 3. Nf3 {[%clk 0:02:59.6]} 3... Nf6 {[%clk
0:02:57.5]} 4. e3 {[%clk 0:02:58.9]} 4... e6 {[%clk 0:02:57.6]} 5. Bxc4 {[%clk
0:02:58.5]} 5... c5 {[%clk 0:02:58.2]} 6. e4 {[%clk 0:02:58]} 6... Nxe4 {[%clk
0:02:54.3]} 7. Qe2 {[%clk 0:02:56.1]} 7... Nf6 {[%clk 0:02:44.3]} 8. O-O {[%clk
0:02:43.1]} 8... Be7 {[%clk 0:02:42.4]} 9. Rd1 {[%clk 0:02:31.9]} 9... O-O
{[%clk 0:02:41]} 10. dxc5 {[%clk 0:02:31]} 10... Qc7 {[%clk 0:02:39.8]} 11. Nc3
{[%clk 0:02:15.5]} 11... a6 {[%clk 0:02:33.9]} 12. b4 {[%clk 0:02:08.9]} 12...
Nbd7 {[%clk 0:02:22.5]} 13. g3 {[%clk 0:01:59.8]} 13... b6 {[%clk 0:02:18.3]}
14. Bf4 {[%clk 0:01:56.2]} 14... Qc6 {[%clk 0:02:04.5]} 15. Nd4 {[%clk
0:01:48.4]} 15... Qb7 {[%clk 0:01:45.8]} 16. c6 {[%clk 0:01:47.5]} 16... Qa7
{[%clk 0:01:44.6]} 17. cxd7 {[%clk 0:01:44.6]} 17... Bxd7 {[%clk 0:01:45.5]} 18.
a3 {[%clk 0:01:39.8]} 18... Rac8 {[%clk 0:01:44.7]} 19. Rac1 {[%clk 0:01:39.2]}
19... Rfd8 {[%clk 0:01:34.3]} 20. Bxa6 {[%clk 0:01:30]} 20... Ra8 {[%clk
0:01:31]} 21. Bb5 {[%clk 0:01:26.8]} 21... Qxa3 {[%clk 0:01:28.3]} 22. Bxd7
{[%clk 0:01:22.9]} 22... Rxd7 {[%clk 0:01:25.1]} 23. Nc6 {[%clk 0:01:20.9]}
23... Rxd1+ {[%clk 0:01:14.9]} 24. Qxd1 {[%clk 0:01:20]} 24... Bxb4 {[%clk
0:01:10.6]} 25. Nb5 {[%clk 0:01:18.8]} 25... Qa4 {[%clk 0:00:57.7]} 26. Qxa4
{[%clk 0:01:13]} 26... Rxa4 {[%clk 0:00:57.6]} 27. Nxb4 {[%clk 0:01:12.2]} 27...
h6 {[%clk 0:00:57.1]} 28. Nc6 {[%clk 0:01:10.2]} 28... Nd5 {[%clk 0:00:56.3]}
29. Be3 {[%clk 0:01:07.5]} 29... Ra2 {[%clk 0:00:53.8]} 30. Nc3 {[%clk
0:01:05.6]} 30... Nxc3 {[%clk 0:00:53.8]} 31. Rxc3 {[%clk 0:01:06]} 31... b5
{[%clk 0:00:54.7]} 32. Rb3 {[%clk 0:01:05.7]} 32... Rc2 {[%clk 0:00:53.7]} 33.
Nd4 {[%clk 0:01:05.2]} 1-0

[Event "Early-Titled-Tuesday-Blitz-January-16-2024"]
[Site "Chess.com"]
[Date "2024.01.16"]
[Round "3"]
[White "Yurasova_Daria"]
[Black "Makswolf200817"]
[Result "0-1"]
[WhiteElo "2461"]
[BlackElo "2662"]
[TimeControl "180+1"]
[EndTime "8:27:16 PST"]
[Termination "Makswolf200817 won by resignation"]

1. d4 {[%clk 0:03:00.3]} 1... Nf6 {[%clk 0:02:59]} 2. Bg5 {[%clk 0:02:58.5]}
2... c5 {[%clk 0:02:52.9]} 3. d5 {[%clk 0:02:57.9]} 3... Qb6 {[%clk 0:02:50.5]}
4. Nc3 {[%clk 0:02:51.4]} 4... Qxb2 {[%clk 0:02:46.3]} 5. Bd2 {[%clk 0:02:49.6]}
5... Qb6 {[%clk 0:02:41.8]} 6. e4 {[%clk 0:02:49.7]} 6... d6 {[%clk 0:02:41.5]}
7. a4 {[%clk 0:02:46.1]} 7... g6 {[%clk 0:02:39.6]} 8. f4 {[%clk 0:02:42.5]}
8... Bg7 {[%clk 0:02:39]} 9. Nf3 {[%clk 0:02:43.1]} 9... O-O {[%clk 0:02:38.2]}
10. Bc4 {[%clk 0:02:43.7]} 10... a6 {[%clk 0:02:12.3]} 11. O-O {[%clk
0:02:41.4]} 11... Bg4 {[%clk 0:02:06]} 12. Rb1 {[%clk 0:02:38.4]} 12... Qc7
{[%clk 0:02:05.9]} 13. h3 {[%clk 0:02:33.8]} 13... Bxf3 {[%clk 0:02:05.9]} 14.
Qxf3 {[%clk 0:02:34.7]} 14... Nbd7 {[%clk 0:02:05.7]} 15. Qe3 {[%clk 0:02:23.5]}
15... Nb6 {[%clk 0:01:50.7]} 16. Be2 {[%clk 0:02:11.9]} 16... Nfxd5 {[%clk
0:01:44.4]} 17. Qg3 {[%clk 0:01:55.3]} 17... Nxc3 {[%clk 0:01:38.5]} 18. Bxc3
{[%clk 0:01:56.2]} 18... Bxc3 {[%clk 0:01:38.8]} 19. Qxc3 {[%clk 0:01:56.8]}
19... Nxa4 {[%clk 0:01:39.5]} 20. Qg3 {[%clk 0:01:51.3]} 20... c4 {[%clk
0:01:33.4]} 21. f5 {[%clk 0:01:49]} 21... b5 {[%clk 0:01:30.7]} 22. h4 {[%clk
0:01:47.4]} 22... Nc5 {[%clk 0:01:27.9]} 23. Qg4 {[%clk 0:01:40.8]} 23... Nd7
{[%clk 0:01:26]} 24. h5 {[%clk 0:01:37.1]} 24... Ne5 {[%clk 0:01:26]} 25. Qg3
{[%clk 0:01:36.6]} 25... Kg7 {[%clk 0:01:18.4]} 26. Rf4 {[%clk 0:01:33.2]} 26...
Qc5+ {[%clk 0:01:15.9]} 27. Kh1 {[%clk 0:01:32.2]} 27... a5 {[%clk 0:01:16]} 28.
Rbf1 {[%clk 0:01:32.7]} 28... a4 {[%clk 0:01:12.5]} 29. Qg5 {[%clk 0:01:18.9]}
29... f6 {[%clk 0:01:07.3]} 30. Qg3 {[%clk 0:01:08.5]} 30... g5 {[%clk
0:01:07.4]} 31. Rh4 {[%clk 0:00:58.8]} 31... h6 {[%clk 0:01:04.9]} 0-1

[Event "Early-Titled-Tuesday-Blitz-January-16-2024"]
[Site "Chess.com"]
[Date "2024.01.16"]
[Round "3"]
[White "dasatcu90"]
[Black "aistrel"]
[Result "1-0"]
[WhiteElo "2332"]
[BlackElo "2552"]
[TimeControl "180+1"]
[EndTime "8:27:25 PST"]
[Termination "dasatcu90 won by resignation"]

1. d4 {[%clk 0:03:00.9]} 1... Nf6 {[%clk 0:02:57.5]} 2. Nf3 {[%clk 0:03:00.6]}
2... g6 {[%clk 0:02:57.6]} 3. c4 {[%clk 0:03:00.4]} 3... Bg7 {[%clk 0:02:57.8]}
4. Nc3 {[%clk 0:03:01.1]} 4... O-O {[%clk 0:02:57.2]} 5. Bg5 {[%clk 0:03:00.9]}
5... d6 {[%clk 0:02:55.8]} 6. e3 {[%clk 0:03:00.9]} 6... c6 {[%clk 0:02:54.2]}
7. Be2 {[%clk 0:03:00.5]} 7... a6 {[%clk 0:02:52]} 8. a4 {[%clk 0:02:48.9]} 8...
a5 {[%clk 0:02:52.2]} 9. O-O {[%clk 0:02:48.4]} 9... Na6 {[%clk 0:02:52.7]} 10.
h3 {[%clk 0:02:47.1]} 10... Nb4 {[%clk 0:02:52.8]} 11. Re1 {[%clk 0:02:46.1]}
11... Bf5 {[%clk 0:02:52.5]} 12. Nd2 {[%clk 0:02:44.5]} 12... Nc2 {[%clk
0:02:51.3]} 13. e4 {[%clk 0:02:44.1]} 13... Nxe1 {[%clk 0:02:38.2]} 14. exf5
{[%clk 0:02:43.3]} 14... Nxg2 {[%clk 0:02:39.1]} 15. Kxg2 {[%clk 0:02:42.6]}
15... gxf5 {[%clk 0:02:36.3]} 16. Nf3 {[%clk 0:02:06.5]} 16... Ne4 {[%clk
0:02:30.8]} 17. Nxe4 {[%clk 0:01:54.7]} 17... fxe4 {[%clk 0:02:31.7]} 18. Nh4
{[%clk 0:01:53.8]} 18... h6 {[%clk 0:02:20.3]} 19. Be3 {[%clk 0:01:52.2]} 19...
e6 {[%clk 0:02:20.1]} 20. Kg3 {[%clk 0:01:40]} 20... c5 {[%clk 0:02:14.9]} 21.
Qd2 {[%clk 0:01:32.3]} 21... f5 {[%clk 0:01:49.7]} 22. Bxh6 {[%clk 0:01:25.1]}
22... cxd4 {[%clk 0:01:30]} 23. Bxg7 {[%clk 0:01:24.3]} 23... f4+ {[%clk
0:01:29.1]} 24. Kh2 {[%clk 0:01:19.8]} 24... Kxg7 {[%clk 0:01:29.5]} 25. Qxd4+
{[%clk 0:01:15.3]} 25... e5 {[%clk 0:01:29.1]} 26. Rg1+ {[%clk 0:01:12.1]} 26...
Kh6 {[%clk 0:00:45.9]} 27. Rg6+ {[%clk 0:01:07.5]} 27... Kh7 {[%clk 0:00:46.3]}
28. Qxe4 {[%clk 0:01:03.9]} 28... Qxh4 {[%clk 0:00:47]} 29. Rg4+ {[%clk
0:01:00.8]} 1-0

[Event "Early-Titled-Tuesday-Blitz-January-16-2024"]
[Site "Chess.com"]
[Date "2024.01.16"]
[Round "3"]
[White "chito89"]
[Black "publicaccountcze"]
[Result "1-0"]
[WhiteElo "2925"]
[BlackElo "2331"]
[TimeControl "180+1"]
[EndTime "8:27:25 PST"]
[Termination "chito89 won on time"]

1. d4 {[%clk 0:02:12.2]} 1... Nf6 {[%clk 0:02:56.9]} 2. c4 {[%clk 0:02:12.5]}
2... g6 {[%clk 0:02:56.3]} 3. Nc3 {[%clk 0:02:12.7]} 3... d5 {[%clk 0:02:57]} 4.
Bd2 {[%clk 0:02:10.4]} 4... Bg7 {[%clk 0:02:55.9]} 5. cxd5 {[%clk 0:02:10.9]}
5... Nxd5 {[%clk 0:02:55.9]} 6. e4 {[%clk 0:02:11.8]} 6... Nxc3 {[%clk
0:02:56.2]} 7. Bxc3 {[%clk 0:02:12.7]} 7... b6 {[%clk 0:02:19.4]} 8. Rc1 {[%clk
0:02:01.3]} 8... Bb7 {[%clk 0:02:19.1]} 9. Bb5+ {[%clk 0:01:53.7]} 9... Nd7
{[%clk 0:02:03.8]} 10. d5 {[%clk 0:01:49.5]} 10... O-O {[%clk 0:01:50]} 11. Nf3
{[%clk 0:01:49.1]} 11... Nf6 {[%clk 0:01:46.9]} 12. Qe2 {[%clk 0:01:48.6]} 12...
a6 {[%clk 0:01:14.1]} 13. Bd3 {[%clk 0:01:47.9]} 13... c6 {[%clk 0:01:09.9]} 14.
dxc6 {[%clk 0:01:48.8]} 14... Bxc6 {[%clk 0:01:08.3]} 15. O-O {[%clk 0:01:49.7]}
15... Rc8 {[%clk 0:00:51.8]} 16. Bxa6 {[%clk 0:01:49]} 16... Rc7 {[%clk
0:00:51.7]} 17. Be5 {[%clk 0:01:48.6]} 17... Nxe4 {[%clk 0:00:44.1]} 18. Bxc7
{[%clk 0:01:45.2]} 18... Qxc7 {[%clk 0:00:45]} 19. Qxe4 {[%clk 0:01:45.6]} 19...
Bxe4 {[%clk 0:00:44.4]} 20. Rxc7 {[%clk 0:01:46.5]} 20... Ra8 {[%clk 0:00:37.4]}
21. Bc4 {[%clk 0:01:43.1]} 21... e6 {[%clk 0:00:22.6]} 22. Rd1 {[%clk
0:01:39.1]} 22... Ra4 {[%clk 0:00:16.6]} 23. Rd8+ {[%clk 0:01:34.9]} 23... Bf8
{[%clk 0:00:16.2]} 24. Bb3 {[%clk 0:01:35.1]} 24... Bxf3 {[%clk 0:00:09.1]} 25.
Bxa4 {[%clk 0:01:34.5]} 1-0

[Event "Early-Titled-Tuesday-Blitz-January-16-2024"]
[Site "Chess.com"]
[Date "2024.01.16"]
[Round "3"]
[White "ReinaldoR"]
[Black "starworld123"]
[Result "0-1"]
[WhiteElo "2514"]
[BlackElo "2830"]
[TimeControl "180+1"]
[EndTime "8:27:28 PST"]
[Termination "starworld123 won on time"]

1. e4 {[%clk 0:02:59.3]} 1... c5 {[%clk 0:02:59.1]} 2. Nf3 {[%clk 0:02:58.7]}
2... e6 {[%clk 0:02:59.3]} 3. c3 {[%clk 0:02:58]} 3... d5 {[%clk 0:02:58.4]} 4.
exd5 {[%clk 0:02:57.6]} 4... Qxd5 {[%clk 0:02:59.3]} 5. d4 {[%clk 0:02:56.4]}
5... Nf6 {[%clk 0:02:57.5]} 6. Be3 {[%clk 0:02:53.4]} 6... Nc6 {[%clk
0:02:57.1]} 7. Bd3 {[%clk 0:02:44.1]} 7... cxd4 {[%clk 0:02:32.4]} 8. cxd4
{[%clk 0:02:42.6]} 8... Bb4+ {[%clk 0:02:32.4]} 9. Nc3 {[%clk 0:02:42.2]} 9...
O-O {[%clk 0:02:31.1]} 10. O-O {[%clk 0:02:42.1]} 10... Qa5 {[%clk 0:02:31.8]}
11. Ne4 {[%clk 0:02:16.2]} 11... Nd5 {[%clk 0:02:19.3]} 12. Nfg5 {[%clk
0:01:49.2]} 12... h6 {[%clk 0:02:14.5]} 13. Qh5 {[%clk 0:01:24.8]} 13... Be7
{[%clk 0:01:45.4]} 14. Nf3 {[%clk 0:00:35.8]} 14... Nxe3 {[%clk 0:01:37.8]} 15.
Qxa5 {[%clk 0:00:35.6]} 15... Nxa5 {[%clk 0:01:38.7]} 16. fxe3 {[%clk 0:00:36]}
16... b6 {[%clk 0:01:39.3]} 17. b4 {[%clk 0:00:25.8]} 17... Nc6 {[%clk
0:01:36.6]} 18. a3 {[%clk 0:00:25.9]} 18... Bb7 {[%clk 0:01:33]} 19. Rac1 {[%clk
0:00:25.5]} 19... Rac8 {[%clk 0:01:26.8]} 20. Kf2 {[%clk 0:00:22.1]} 20... Rfd8
{[%clk 0:01:23.5]} 0-1

[Event "Early-Titled-Tuesday-Blitz-January-16-2024"]
[Site "Chess.com"]
[Date "2024.01.16"]
[Round "3"]
[White "XDPS"]
[Black "KNVB"]
[Result "1-0"]
[WhiteElo "2905"]
[BlackElo "2681"]
[TimeControl "180+1"]
[EndTime "8:27:29 PST"]
[Termination "XDPS won by checkmate"]

1. Nf3 {[%clk 0:03:00.9]} 1... d5 {[%clk 0:02:59.6]} 2. b3 {[%clk 0:03:00.8]}
2... Bf5 {[%clk 0:02:48.6]} 3. Bb2 {[%clk 0:03:00.6]} 3... e6 {[%clk 0:02:46.2]}
4. g3 {[%clk 0:03:00.5]} 4... h6 {[%clk 0:02:44]} 5. Bg2 {[%clk 0:03:00]} 5...
c6 {[%clk 0:02:44.4]} 6. O-O {[%clk 0:03:00.3]} 6... Nf6 {[%clk 0:02:45.1]} 7.
d3 {[%clk 0:03:00.8]} 7... Be7 {[%clk 0:02:45.8]} 8. Nbd2 {[%clk 0:03:01.2]}
8... O-O {[%clk 0:02:46.4]} 9. Ne5 {[%clk 0:02:59.5]} 9... Re8 {[%clk
0:02:44.4]} 10. e4 {[%clk 0:02:59.2]} 10... Bh7 {[%clk 0:02:45]} 11. Qe2 {[%clk
0:02:59.1]} 11... a5 {[%clk 0:02:45]} 12. a4 {[%clk 0:02:58.2]} 12... Na6 {[%clk
0:02:45]} 13. f4 {[%clk 0:02:54.2]} 13... Nd7 {[%clk 0:02:38.6]} 14. Ndf3 {[%clk
0:02:49.2]} 14... Bf8 {[%clk 0:02:13.7]} 15. Kh1 {[%clk 0:02:46]} 15... Nb4
{[%clk 0:01:42.4]} 16. Rad1 {[%clk 0:02:37.6]} 16... Nxe5 {[%clk 0:01:32.6]} 17.
Nxe5 {[%clk 0:02:37.3]} 17... f6 {[%clk 0:01:29]} 18. Nf3 {[%clk 0:02:35.1]}
18... Kh8 {[%clk 0:01:20.1]} 19. Nd4 {[%clk 0:02:21.3]} 19... Qd7 {[%clk
0:01:05.2]} 20. Bh3 {[%clk 0:02:18.5]} 20... Qf7 {[%clk 0:01:05.6]} 21. Rfe1
{[%clk 0:02:06.9]} 21... dxe4 {[%clk 0:01:00.1]} 22. dxe4 {[%clk 0:02:06.6]}
22... e5 {[%clk 0:01:00.2]} 23. fxe5 {[%clk 0:02:03.6]} 23... Rxe5 {[%clk
0:00:58.1]} 24. Nf5 {[%clk 0:01:55.2]} 24... Ree8 {[%clk 0:00:52]} 25. Qf2
{[%clk 0:01:53.2]} 25... Rad8 {[%clk 0:00:38.9]} 26. Bg2 {[%clk 0:01:47.2]}
26... Bg6 {[%clk 0:00:23]} 27. Nxh6 {[%clk 0:01:37.1]} 27... gxh6 {[%clk
0:00:14.3]} 28. Rxd8 {[%clk 0:01:37.7]} 28... Rxd8 {[%clk 0:00:08]} 29. Qxf6+
{[%clk 0:01:38.2]} 29... Kh7 {[%clk 0:00:01.8]} 30. Qh8# {[%clk 0:01:37.7]} 1-0

[Event "Early-Titled-Tuesday-Blitz-January-16-2024"]
[Site "Chess.com"]
[Date "2024.01.16"]
[Round "3"]
[White "KarolKacprzak"]
[Black "GHANDEEVAM2003"]
[Result "1/2-1/2"]
[WhiteElo "2745"]
[BlackElo "3004"]
[TimeControl "180+1"]
[EndTime "8:27:30 PST"]
[Termination "Game drawn by repetition"]

1. e4 {[%clk 0:03:00.2]} 1... c6 {[%clk 0:02:58.6]} 2. d4 {[%clk 0:02:58.6]}
2... d5 {[%clk 0:02:57.9]} 3. e5 {[%clk 0:02:58.5]} 3... Bf5 {[%clk 0:02:57.3]}
4. h4 {[%clk 0:02:54.9]} 4... h6 {[%clk 0:02:56.6]} 5. Nc3 {[%clk 0:02:53.6]}
5... e6 {[%clk 0:02:56.1]} 6. Be3 {[%clk 0:02:53.3]} 6... Nd7 {[%clk 0:02:51.8]}
7. g4 {[%clk 0:02:52.4]} 7... Bh7 {[%clk 0:02:51.5]} 8. h5 {[%clk 0:02:52.9]}
8... Qb6 {[%clk 0:02:42.4]} 9. Qd2 {[%clk 0:02:28.7]} 9... f6 {[%clk 0:02:26.5]}
10. f4 {[%clk 0:02:19.1]} 10... c5 {[%clk 0:02:11.5]} 11. Nf3 {[%clk 0:02:05.9]}
11... fxe5 {[%clk 0:02:04.8]} 12. fxe5 {[%clk 0:02:04.4]} 12... c4 {[%clk
0:02:04.1]} 13. Bg2 {[%clk 0:01:40.1]} 13... Qxb2 {[%clk 0:01:50.6]} 14. Rb1
{[%clk 0:01:39.2]} 14... Qa3 {[%clk 0:01:50.8]} 15. Nb5 {[%clk 0:01:31.5]} 15...
Qxa2 {[%clk 0:01:48.8]} 16. O-O {[%clk 0:01:31.2]} 16... Rc8 {[%clk 0:01:37.6]}
17. Nh4 {[%clk 0:01:04.6]} 17... Qxc2 {[%clk 0:01:19.2]} 18. Rxf8+ {[%clk
0:00:59.3]} 18... Nxf8 {[%clk 0:01:14.2]} 19. Nd6+ {[%clk 0:00:56.1]} 19... Kd8
{[%clk 0:01:12.8]} 20. Rxb7 {[%clk 0:00:40.7]} 20... Qxd2 {[%clk 0:01:05.9]} 21.
Nf7+ {[%clk 0:00:33.4]} 21... Ke8 {[%clk 0:01:06]} 22. Nd6+ {[%clk 0:00:34.1]}
22... Kd8 {[%clk 0:01:06.4]} 23. Nf7+ {[%clk 0:00:19.7]} 23... Ke8 {[%clk
0:01:06.3]} 24. Nd6+ {[%clk 0:00:20.6]} 24... Kd8 {[%clk 0:01:06.6]} 1/2-1/2

[Event "Early-Titled-Tuesday-Blitz-January-16-2024"]
[Site "Chess.com"]
[Date "2024.01.16"]
[Round "3"]
[White "Maftuna2303"]
[Black "JaloliddinIlkhomi"]
[Result "1-0"]
[WhiteElo "2349"]
[BlackElo "2712"]
[TimeControl "180+1"]
[EndTime "8:27:34 PST"]
[Termination "Maftuna2303 won by resignation"]

1. e4 {[%clk 0:03:00.9]} 1... e6 {[%clk 0:03:00.1]} 2. d4 {[%clk 0:02:59.9]}
2... d5 {[%clk 0:03:00.7]} 3. Nd2 {[%clk 0:03:00.3]} 3... Nf6 {[%clk 0:03:01.3]}
4. e5 {[%clk 0:02:59.6]} 4... Nfd7 {[%clk 0:03:01.9]} 5. c3 {[%clk 0:02:59.1]}
5... c5 {[%clk 0:03:02.5]} 6. Ngf3 {[%clk 0:02:58.7]} 6... Nc6 {[%clk
0:03:02.6]} 7. Bd3 {[%clk 0:02:58.1]} 7... cxd4 {[%clk 0:03:03.2]} 8. cxd4
{[%clk 0:02:57.9]} 8... f6 {[%clk 0:03:03.9]} 9. exf6 {[%clk 0:02:57.5]} 9...
Nxf6 {[%clk 0:03:04.6]} 10. O-O {[%clk 0:02:57.5]} 10... Bd6 {[%clk 0:03:03.8]}
11. Re1 {[%clk 0:02:54.1]} 11... O-O {[%clk 0:03:03.9]} 12. Nf1 {[%clk
0:02:53.2]} 12... Qb6 {[%clk 0:02:59.8]} 13. Ng3 {[%clk 0:02:47.7]} 13... Ng4
{[%clk 0:02:59.8]} 14. Bxh7+ {[%clk 0:02:37.1]} 14... Kxh7 {[%clk 0:03:00.7]}
15. Ng5+ {[%clk 0:02:36.9]} 15... Kg8 {[%clk 0:03:01.3]} 16. Qxg4 {[%clk
0:02:37]} 16... Qxd4 {[%clk 0:03:02]} 17. Qe2 {[%clk 0:02:24.9]} 17... e5 {[%clk
0:02:36.6]} 18. Be3 {[%clk 0:02:14.8]} 18... Qg4 {[%clk 0:02:30.5]} 19. Qd3
{[%clk 0:02:04.5]} 19... Rf5 {[%clk 0:01:07.5]} 20. Qxd5+ {[%clk 0:01:52.3]}
20... Kh8 {[%clk 0:01:07.4]} 21. Nxf5 {[%clk 0:01:35.7]} 21... Bxf5 {[%clk
0:00:58.8]} 22. Nf7+ {[%clk 0:01:32.7]} 22... Kh7 {[%clk 0:00:58.1]} 23. Nxd6
{[%clk 0:01:30.8]} 23... Rd8 {[%clk 0:00:58.1]} 24. Bc5 {[%clk 0:01:23.6]} 24...
Qg6 {[%clk 0:00:49.4]} 25. Qf3 {[%clk 0:01:14.8]} 25... b6 {[%clk 0:00:40.2]}
26. Qxf5 {[%clk 0:01:12.8]} 26... bxc5 {[%clk 0:00:38.3]} 27. Qxg6+ {[%clk
0:01:12.2]} 27... Kxg6 {[%clk 0:00:39]} 28. Ne4 {[%clk 0:01:12.5]} 28... Nd4
{[%clk 0:00:38.3]} 29. Rac1 {[%clk 0:01:12.7]} 29... Rb8 {[%clk 0:00:37.4]} 30.
b3 {[%clk 0:01:12.4]} 30... a5 {[%clk 0:00:37.6]} 31. Nxc5 {[%clk 0:01:12.5]}
31... a4 {[%clk 0:00:36.8]} 32. Nxa4 {[%clk 0:01:12.3]} 32... Rc8 {[%clk
0:00:36.8]} 33. Rxc8 {[%clk 0:01:11.9]} 1-0

[Event "Early-Titled-Tuesday-Blitz-January-16-2024"]
[Site "Chess.com"]
[Date "2024.01.16"]
[Round "3"]
[White "maximnovik"]
[Black "talaicito"]
[Result "1-0"]
[WhiteElo "2520"]
[BlackElo "2290"]
[TimeControl "180+1"]
[EndTime "8:27:36 PST"]
[Termination "maximnovik won on time"]

1. e4 {[%clk 0:03:00.9]} 1... c5 {[%clk 0:02:59.3]} 2. Nf3 {[%clk 0:03:00.4]}
2... d6 {[%clk 0:02:59.7]} 3. d4 {[%clk 0:03:00.5]} 3... cxd4 {[%clk 0:03:00.6]}
4. Nxd4 {[%clk 0:03:00.6]} 4... Nf6 {[%clk 0:03:01.5]} 5. Nc3 {[%clk 0:03:00.9]}
5... g6 {[%clk 0:03:02.1]} 6. Be2 {[%clk 0:02:59.7]} 6... Bg7 {[%clk 0:03:01.9]}
7. O-O {[%clk 0:03:00.2]} 7... O-O {[%clk 0:03:02.4]} 8. Bg5 {[%clk 0:03:00.2]}
8... Nc6 {[%clk 0:03:00.8]} 9. Nb3 {[%clk 0:03:00.3]} 9... a5 {[%clk 0:02:50]}
10. a4 {[%clk 0:02:59.4]} 10... Nb4 {[%clk 0:02:43.1]} 11. Nd4 {[%clk
0:02:50.8]} 11... Nc6 {[%clk 0:02:37.9]} 12. Ndb5 {[%clk 0:02:49.5]} 12... h6
{[%clk 0:02:28.2]} 13. Be3 {[%clk 0:02:41.5]} 13... Kh7 {[%clk 0:02:24.2]} 14.
f4 {[%clk 0:02:41.1]} 14... Bd7 {[%clk 0:02:09.3]} 15. Kh1 {[%clk 0:02:41]}
15... Nb4 {[%clk 0:02:04.1]} 16. Bf3 {[%clk 0:02:32.1]} 16... Bc6 {[%clk
0:01:57.5]} 17. Qe2 {[%clk 0:02:30.1]} 17... Nd7 {[%clk 0:01:50.2]} 18. Rad1
{[%clk 0:02:28.8]} 18... Qc8 {[%clk 0:01:37.8]} 19. Rd2 {[%clk 0:02:24]} 19...
Nc5 {[%clk 0:01:18.3]} 20. Bxc5 {[%clk 0:02:07.4]} 20... dxc5 {[%clk 0:01:19.2]}
21. e5 {[%clk 0:02:07.1]} 21... Bxf3 {[%clk 0:00:55.8]} 22. Qxf3 {[%clk
0:02:05.9]} 22... Qc6 {[%clk 0:00:53.7]} 23. Qxc6 {[%clk 0:02:01.4]} 23... bxc6
{[%clk 0:00:50.2]} 24. Na3 {[%clk 0:02:01.1]} 24... f6 {[%clk 0:00:43.5]} 25.
Re1 {[%clk 0:01:56.3]} 25... fxe5 {[%clk 0:00:41.7]} 26. fxe5 {[%clk 0:01:51.4]}
26... Bxe5 {[%clk 0:00:39.7]} 27. Nc4 {[%clk 0:01:51.8]} 27... Bxc3 {[%clk
0:00:32.4]} 28. bxc3 {[%clk 0:01:51.1]} 28... Nd5 {[%clk 0:00:32.9]} 29. Kg1
{[%clk 0:01:51.1]} 29... Rf7 {[%clk 0:00:28.7]} 30. Re6 {[%clk 0:01:50.1]} 30...
Raf8 {[%clk 0:00:21.6]} 31. h3 {[%clk 0:01:50.5]} 31... Nxc3 {[%clk 0:00:20.2]}
32. Ne5 {[%clk 0:01:40.5]} 32... Rf1+ {[%clk 0:00:14.1]} 33. Kh2 {[%clk
0:01:40.5]} 33... Ra1 {[%clk 0:00:05.6]} 34. Rxe7+ {[%clk 0:01:39.6]} 34... Kg8
{[%clk 0:00:05.3]} 35. Rdd7 {[%clk 0:01:38.2]} 1-0

[Event "Early-Titled-Tuesday-Blitz-January-16-2024"]
[Site "Chess.com"]
[Date "2024.01.16"]
[Round "3"]
[White "Tiqr777"]
[Black "Arimin1329"]
[Result "1-0"]
[WhiteElo "2613"]
[BlackElo "2409"]
[TimeControl "180+1"]
[EndTime "8:27:37 PST"]
[Termination "Tiqr777 won by checkmate"]

1. d4 {[%clk 0:03:00.9]} 1... Nf6 {[%clk 0:02:56.7]} 2. Nf3 {[%clk 0:03:01.2]}
2... b6 {[%clk 0:02:56.8]} 3. Bf4 {[%clk 0:03:00.5]} 3... Bb7 {[%clk 0:02:55.3]}
4. e3 {[%clk 0:03:00.7]} 4... d6 {[%clk 0:02:52.8]} 5. h3 {[%clk 0:03:01]} 5...
Nbd7 {[%clk 0:02:53.1]} 6. Nbd2 {[%clk 0:03:01.5]} 6... g6 {[%clk 0:02:53.6]} 7.
Be2 {[%clk 0:03:02]} 7... Bg7 {[%clk 0:02:54.2]} 8. O-O {[%clk 0:03:02.5]} 8...
O-O {[%clk 0:02:54.8]} 9. c3 {[%clk 0:03:02.7]} 9... Re8 {[%clk 0:02:54.2]} 10.
a4 {[%clk 0:03:02.2]} 10... e5 {[%clk 0:02:53.3]} 11. dxe5 {[%clk 0:03:02.3]}
11... dxe5 {[%clk 0:02:53]} 12. Bg3 {[%clk 0:03:03]} 12... a5 {[%clk 0:02:48.2]}
13. Qc2 {[%clk 0:03:02.3]} 13... Qe7 {[%clk 0:02:46]} 14. Bb5 {[%clk 0:02:59.4]}
14... c6 {[%clk 0:02:39.9]} 15. Be2 {[%clk 0:02:58.3]} 15... Rad8 {[%clk
0:02:35.1]} 16. e4 {[%clk 0:02:57.9]} 16... Nh5 {[%clk 0:02:21.4]} 17. Bh2
{[%clk 0:02:56.6]} 17... Bh6 {[%clk 0:02:16.7]} 18. Rfe1 {[%clk 0:02:53.4]}
18... Nc5 {[%clk 0:02:04.3]} 19. Nc4 {[%clk 0:02:52.2]} 19... f6 {[%clk
0:01:59.9]} 20. b4 {[%clk 0:02:50.4]} 20... axb4 {[%clk 0:01:54]} 21. cxb4
{[%clk 0:02:51]} 21... Ne6 {[%clk 0:01:54.5]} 22. Nxb6 {[%clk 0:02:49.5]} 22...
Nd4 {[%clk 0:01:16.4]} 23. Nxd4 {[%clk 0:02:48.6]} 23... Rxd4 {[%clk 0:01:16.5]}
24. Bxh5 {[%clk 0:02:39]} 24... gxh5 {[%clk 0:01:12.9]} 25. a5 {[%clk
0:02:38.9]} 25... Qxb4 {[%clk 0:00:59.4]} 26. Reb1 {[%clk 0:02:37.4]} 26... Qd6
{[%clk 0:00:25.3]} 27. a6 {[%clk 0:02:36.6]} 27... Ba8 {[%clk 0:00:25]} 28. Nxa8
{[%clk 0:02:37]} 28... Rxa8 {[%clk 0:00:24.9]} 29. a7 {[%clk 0:02:37.5]} 29...
Rd2 {[%clk 0:00:20.2]} 30. Qc4+ {[%clk 0:02:36.6]} 30... Kg7 {[%clk 0:00:19.9]}
31. Rb7+ {[%clk 0:02:32.4]} 31... Kg6 {[%clk 0:00:18.3]} 32. Qf7+ {[%clk
0:02:27.5]} 32... Kg5 {[%clk 0:00:17.7]} 33. Bg3 {[%clk 0:02:22.9]} 33... h4
{[%clk 0:00:10.5]} 34. Bxh4+ {[%clk 0:01:50.8]} 34... Kxh4 {[%clk 0:00:10.4]}
35. g3+ {[%clk 0:01:50.7]} 35... Kg5 {[%clk 0:00:08.7]} 36. Qxh7 {[%clk
0:01:50.9]} 36... Rd1+ {[%clk 0:00:04.9]} 37. Kg2 {[%clk 0:01:46]} 37... Rxa1
{[%clk 0:00:04.7]} 38. Qf5# {[%clk 0:01:45.5]} 1-0